fUSD/lending_fUSD_20240519
["ID","MTS","AMOUNT","RATE_DAILY","PERIOD"]
[327456538,1716079866800,-896.67,0.00028493,2]
[327456539,1716079866810,-500.0,0.00028493,2]
[327456540,1716079866819,-500.0,0.00028493,2]
[327456541,1716079866829,-319.688279,0.00028493,7]
[327456542,1716079866839,-566.68567746,0.00028493,2]
[327456543,1716079866849,-733.96,0.00028493,2]
[327456544,1716079866860,-1493.69,0.00028493,2]
[327456545,1716079866870,-319.688279,0.00028493,7]
[327456546,1716079866879,-996.4,0.00028493,2]
[327456547,1716079866889,-500.0,0.00028493,2]
[327456548,1716079866898,-500.0,0.00028493,2]
[327456549,1716079866907,-500.0,0.00028493,2]
[327456550,1716079866917,-500.0,0.00028493,2]
[327456551,1716079866926,-1067.83,0.00028493,2]
[327456552,1716079866936,-500.0,0.00028493,2]
[327456553,1716079866946,-717.91,0.00028493,2]
[327456554,1716079866955,-464.916368,0.00028493,7]
[327456555,1716079866964,-671.98,0.00028493,2]
[327456556,1716079866974,-464.916368,0.00028493,7]
[327456557,1716079866983,-414.26,0.00028493,2]
[327456558,1716079866992,-500.0,0.00028493,2]
[327456559,1716079867002,-637.51,0.00028493,2]
[327456560,1716079867011,-151.0,0.00028493,7]
[327456561,1716079867021,-500.0,0.00028493,2]
[327456562,1716079867030,-709.05,0.00028493,2]
[327456563,1716079867039,-412.15666376,0.00028493,2]
[327456564,1716079867049,-1264.55,0.00028493,2]
[327456565,1716079867059,-151.0,0.00028493,7]
[327456566,1716079867068,-500.0,0.00028493,2]
[327456567,1716079867078,-753.77,0.00028493,2]
[327456568,1716079867087,-500.0,0.00028493,2]
[327456569,1716079867096,-1101.63,0.00028493,2]
[327456570,1716079867105,-500.0,0.00028493,2]
[327456571,1716079867114,-1105.23,0.00028493,2]
[327456572,1716079867124,-158.952003,0.00028493,7]
[327456573,1716079867133,-516.07,0.00028493,2]
[327456574,1716079867142,-151.0,0.00028493,7]
[327456575,1716079867152,-500.0,0.00028493,2]
[327456576,1716079867162,-500.0,0.00028493,2]
[327456577,1716079867171,-500.0,0.00028493,2]
[327456578,1716079867180,-1016.72,0.00028493,2]
[327456579,1716079867190,-500.0,0.00028493,2]
[327456580,1716079867199,-1552.71,0.00028493,2]
[327456581,1716079867209,-1614.27,0.00028493,2]
[327456582,1716079867218,-151.0,0.00028493,7]
[327456583,1716079867227,-822.34,0.00028493,2]
[327456584,1716079867237,-151.0,0.00028493,7]
[327456585,1716079867246,-500.0,0.00028493,2]
[327456586,1716079867256,-745.19,0.00028493,2]
[327456587,1716079867266,-500.0,0.00028493,2]
[327456588,1716079867276,-861.8,0.00028493,2]
[327456589,1716079867285,-500.0,0.00028493,2]
[327456590,1716079867294,-500.0,0.00028493,2]
[327456591,1716079867304,-867.38,0.00028493,2]
[327456592,1716079867313,-516.66615091,0.00028493,2]
[327456593,1716079867323,-790.2,0.00028493,2]
[327456594,1716079867333,-908.09,0.00028493,2]
[327456595,1716079867342,-500.0,0.00028493,2]
[327456596,1716079867351,-2847.34,0.00028493,2]
[327456597,1716079867361,-500.0,0.00028493,2]
[327456598,1716079867370,-500.0,0.00028493,2]
[327456599,1716079867379,-500.0,0.00028493,2]
[327456600,1716079867389,-500.0,0.00028493,2]
[327456601,1716079867398,-231.081675,0.00028493,7]
[327456602,1716079867408,-500.0,0.00028493,2]
[327456603,1716079867419,-231.081675,0.00028493,7]
[327456604,1716079867428,-500.0,0.00028493,2]
[327456605,1716079867439,-500.0,0.00028493,2]
[327456606,1716079867449,-879.34,0.00028493,2]
[327456607,1716079867459,-500.0,0.00028493,2]
[327456608,1716079867468,-1800.44,0.00028493,2]
[327456609,1716079867477,-500.0,0.00028493,2]
[327456610,1716079867487,-500.0,0.00028493,2]
[327456611,1716079867497,-751.88,0.00028493,2]
[327456612,1716079867508,-500.0,0.00028493,2]
[327456613,1716079867517,-690.03,0.00028493,2]
[327456614,1716079867526,-1239.57,0.00028493,2]
[327456615,1716079867536,-311.691066,0.00028493,7]
[327456616,1716079867546,-311.691066,0.00028493,7]
[327456617,1716079867556,-209.044597,0.00028493,7]
[327456618,1716079867565,-694.45,0.00028493,2]
[327456619,1716079867575,-209.044597,0.00028493,7]
[327456620,1716079867584,-2119.09,0.00028493,2]
[327456621,1716079867593,-500.0,0.00028493,2]
[327456622,1716079867763,-500.0,0.00028493,2]
[327456623,1716079867772,-500.0,0.00028493,2]
[327456624,1716079867782,-2258.52,0.00028493,2]
[327456625,1716079867791,-582.13,0.00028493,2]
[327456626,1716079867800,-663.78,0.00028493,2]
[327456627,1716079867809,-592.94,0.00028493,2]
[327456628,1716079867818,-500.0,0.00028493,2]
[327456629,1716079867827,-500.0,0.00028493,2]
[327456630,1716079867837,-663.37,0.00028493,2]
[327456631,1716079867847,-596.02,0.00028493,2]
[327456632,1716079867861,-2187.67,0.00028493,2]
[327456633,1716079867870,-500.0,0.00028493,2]
[327456634,1716079867879,-500.0,0.00028493,2]
[327456635,1716079867889,-500.0,0.00028493,2]
[327456636,1716079867900,-897.21,0.00028493,2]
[327456637,1716079867910,-500.0,0.00028493,2]
[327456638,1716079867919,-1986.87,0.00028493,2]
[327456639,1716079867930,-567.98,0.00028493,2]
[327456640,1716079867939,-643.54,0.00028493,2]
[327456641,1716079867948,-649.98,0.00028493,2]
[327456642,1716079867958,-2292.47,0.00028493,2]
[327456643,1716079867968,-2459.44,0.00028493,2]
[327456644,1716079867977,-8969.82,0.00028493,2]
[327456645,1716079867986,-500.0,0.00028493,2]
[327456646,1716079867995,-702.64,0.00028493,2]
[327456647,1716079868004,-500.0,0.00028493,2]
[327456648,1716079868014,-1618.24,0.00028493,2]
[327456649,1716079868024,-500.0,0.00028493,2]
[327456650,1716079868033,-2898.95,0.00028493,2]
[327456651,1716079868042,-500.0,0.00028493,2]
[327456652,1716079868051,-7341.3,0.00028493,2]
[327456653,1716079868061,-500.0,0.00028493,2]
[327456654,1716079868070,-859.92,0.00028493,2]
[327456655,1716079868080,-597.52,0.00028493,2]
[327456656,1716079868089,-2396.63,0.00028493,2]
[327456657,1716079868098,-847.62,0.00028493,2]
[327456658,1716079868107,-676.53,0.00028493,2]
[327456659,1716079868117,-813.35,0.00028493,2]
[327456660,1716079868126,-1434.0,0.00028493,2]
[327456661,1716079868136,-9386.79,0.00028493,2]
[327456662,1716079868145,-500.0,0.00028493,2]
[327456663,1716079868155,-756.32,0.00028493,2]
[327456664,1716079868164,-30275.28,0.00028493,2]
[327456665,1716079868174,-1856.14,0.00028493,2]
[327456666,1716079868183,-4020.85,0.00028493,2]
[327456667,1716079868192,-762.31,0.00028493,2]
[327456668,1716079868202,-500.0,0.00028493,2]
[327456669,1716079868212,-4821.09,0.00028493,2]
[327456670,1716079868221,-768.86,0.00028493,2]
[327456671,1716079868231,-356.25522479,0.00028493,2]
[327456672,1716079868240,-1175.05,0.00028493,2]
[327456673,1716079868250,-500.0,0.00028493,2]
[327456674,1716079868260,-500.0,0.00028493,2]
[327456675,1716079868270,-614.98,0.00028493,2]
[327456676,1716079868279,-500.0,0.00028493,2]
[327456677,1716079868288,-8593.12,0.00028493,2]
[327456678,1716079868297,-994.65,0.00028493,2]
[327456679,1716079868307,-616.67,0.00028493,2]
[327456680,1716079868316,-404.86327828,0.00028493,2]
[327456681,1716079868326,-900.63,0.00028493,2]
[327456682,1716079868335,-4266.05,0.00028493,2]
[327456683,1716079868345,-966.41,0.00028493,2]
[327456684,1716079868354,-912.23,0.00028493,2]
[327456685,1716079868363,-500.0,0.00028493,2]
[327456686,1716079868373,-500.0,0.00028493,2]
[327456687,1716079868382,-645.69,0.00028493,2]
[327456688,1716079868391,-1869.0,0.00028493,2]
[327456689,1716079868401,-971.87,0.00028493,2]
[327456690,1716079868410,-6268.94,0.00028493,2]
[327456691,1716079868420,-541.88,0.00028493,2]
[327456692,1716079868430,-942.94,0.00028493,2]
[327456693,1716079868439,-500.0,0.00028493,2]
[327456694,1716079868449,-973.68,0.00028493,2]
[327456695,1716079868458,-1701.01,0.00028493,2]
[327456696,1716079868467,-7483.61,0.00028493,2]
[327456697,1716079868476,-500.0,0.00028493,2]
[327456698,1716079868486,-1401.02,0.00028493,2]
[327456699,1716079868495,-676.79,0.00028493,2]
[327456700,1716079868505,-500.0,0.00028493,2]
[327456701,1716079868514,-537.08,0.00028493,2]
[327456702,1716079868523,-6981.65,0.00028493,2]
[327456703,1716079868532,-2717.83,0.00028493,2]
[327456704,1716079868542,-838.88,0.00028493,2]
[327456705,1716079868552,-502.76,0.00028493,2]
[327456706,1716079868561,-2645.1,0.00028493,2]
[327456707,1716079868570,-500.0,0.00028493,2]
[327456708,1716079868579,-500.0,0.00028493,2]
[327456709,1716079868588,-865.2,0.00028493,2]
[327456710,1716079868598,-1132.35,0.00028493,2]
[327456711,1716079868607,-812.15,0.00028493,2]
[327456712,1716079868616,-1556.62,0.00028493,2]
[327456713,1716079868626,-718.44,0.00028493,2]
[327456714,1716079868636,-1265.15,0.00028493,2]
[327456715,1716079868648,-14055.37,0.00028493,2]
[327456716,1716079868658,-2634.63,0.00028493,2]
[327456717,1716079868670,-15063.88,0.00028493,2]
[327456718,1716079868682,-500.0,0.00028493,2]
[327456719,1716079868691,-2652.66,0.00028493,2]
[327456720,1716079868700,-742.79,0.00028493,2]
[327456721,1716079868709,-621.16,0.00028493,2]
[327456722,1716079868722,-794.5,0.00028493,2]
[327456723,1716079868733,-1250.69,0.00028493,2]
[327456724,1716079868744,-693.14,0.00028493,2]
[327456725,1716079868754,-500.0,0.00028493,2]
[327456726,1716079868763,-889.38,0.00028493,2]
[327456727,1716079868772,-1988.34,0.00028493,2]
[327456728,1716079868782,-500.0,0.00028493,2]
[327456729,1716079868791,-1357.07,0.00028493,2]
[327456730,1716079868800,-998.68,0.00028493,2]
[327456731,1716079868809,-500.0,0.00028493,2]
[327456732,1716079868818,-500.0,0.00028493,2]
[327456733,1716079868827,-5624.591496,0.00028493,7]
[327456734,1716079868837,-500.0,0.00028493,2]
[327456735,1716079868847,-500.0,0.00028493,2]
[327456736,1716079868860,-500.0,0.00028493,2]
[327456737,1716079868870,-601.38,0.00028493,2]
[327456738,1716079868879,-894.0,0.00028493,2]
[327456739,1716079868889,-5624.591496,0.00028493,7]
[327456740,1716079868899,-2431.12,0.00028493,2]
[327456741,1716079868908,-1539.56,0.00028493,2]
[327456742,1716079868917,-511.27,0.00028493,2]
[327456743,1716079868927,-500.0,0.00028493,2]
[327456744,1716079868937,-151.0,0.00028493,7]
[327456745,1716079868946,-1396.22,0.00028493,2]
[327456746,1716079868955,-500.0,0.00028493,2]
[327456747,1716079868965,-151.0,0.00028493,7]
[327456748,1716079868974,-174.633648,0.00028493,7]
[327456749,1716079868983,-1300.21,0.00028493,2]
[327456750,1716079868993,-2267.23,0.00028493,2]
[327456751,1716079869002,-1327.72,0.00028493,2]
[327456752,1716079869012,-500.0,0.00028493,2]
[327456753,1716079869022,-500.0,0.00028493,2]
[327456754,1716079869032,-155.697201,0.00028493,7]
[327456755,1716079869042,-151.0,0.00028493,7]
[327456756,1716079869051,-500.0,0.00028493,2]
[327456757,1716079869061,-3187.9,0.00028493,2]
[327456758,1716079869071,-257.2539735,0.00028493,2]
[327456759,1716079869080,-1229.67,0.00028493,2]
[327456760,1716079869090,-1554.51,0.00028493,2]
[327456761,1716079869100,-500.0,0.00028493,2]
[327456762,1716079869109,-500.0,0.00028493,2]
[327456763,1716079869118,-902.06,0.00028493,2]
[327456764,1716079869127,-500.0,0.00028493,2]
[327456765,1716079869137,-744.32,0.00028493,2]
[327456766,1716079869147,-500.0,0.00028493,2]
[327456767,1716079869156,-739.0,0.00028493,2]
[327456768,1716079869166,-500.0,0.00028493,2]
[327456769,1716079869176,-566.09,0.00028493,2]
[327456770,1716079869185,-151.0,0.00028493,7]
[327456771,1716079869195,-2317.87,0.00028493,2]
[327456772,1716079869204,-1543.54,0.00028493,2]
[327456773,1716079869214,-500.0,0.00028493,2]
[327456774,1716079869224,-500.0,0.00028493,2]
[327456775,1716079869233,-500.0,0.00028493,2]
[327456776,1716079869243,-500.0,0.00028493,2]
[327456777,1716079869253,-1576.46,0.00028493,2]
[327456778,1716079869264,-500.0,0.00028493,2]
[327456779,1716079869273,-1727.73,0.00028493,2]
[327456780,1716079869282,-1192.7,0.00028493,2]
[327456781,1716079869292,-702.53,0.00028493,2]
[327456782,1716079869301,-500.0,0.00028493,2]
[327456783,1716079869310,-902.92,0.00028493,2]
[327456784,1716079869320,-500.0,0.00028493,2]
[327456785,1716079869329,-500.0,0.00028493,2]
[327456786,1716079869339,-750.17,0.00028493,2]
[327456787,1716079869348,-683.13,0.00028493,2]
[327456788,1716079869358,-1571.87,0.00028493,2]
[327456789,1716079869367,-500.0,0.00028493,2]
[327456790,1716079869376,-1593.16,0.00028493,2]
[327456791,1716079869386,-1391.44,0.00028493,2]
[327456792,1716079869396,-500.0,0.00028493,2]
[327456793,1716079869405,-734.3,0.00028493,2]
[327456794,1716079869414,-723.24,0.00028493,2]
[327456795,1716079869424,-765.2,0.00028493,2]
[327456796,1716079869433,-500.0,0.00028493,2]
[327456797,1716079869442,-1006.36,0.00028493,2]
[327456798,1716079869451,-500.0,0.00028493,2]
[327456799,1716079869461,-1946.51,0.00028493,2]
[327456800,1716079869470,-500.0,0.00028493,2]
[327456801,1716079869480,-500.0,0.00028493,2]
[327456802,1716079869489,-737.65,0.00028493,2]
[327456803,1716079869498,-1321.13,0.00028493,2]
[327456804,1716079869508,-340.963945,0.00028493,7]
[327456805,1716079869517,-500.0,0.00028493,2]
[327456806,1716079869527,-976.72,0.00028493,2]
[327456807,1716079869536,-182.997182,0.00028493,7]
[327456808,1716079869545,-340.963945,0.00028493,7]
[327456809,1716079869555,-1844.47,0.00028493,2]
[327456810,1716079869563,-500.0,0.00028493,2]
[327456811,1716079869572,-500.0,0.00028493,2]
[327456812,1716079869582,-1337.56,0.00028493,2]
[327456813,1716079869591,-609.15,0.00028493,2]
[327456814,1716079869599,-892.71,0.00028493,2]
[327456815,1716079869609,-182.997182,0.00028493,7]
[327456816,1716079869618,-500.0,0.00028493,2]
[327456817,1716079869627,-713.62,0.00028493,2]
[327456818,1716079869636,-2601.94,0.00028493,2]
[327456819,1716079869645,-500.0,0.00028493,2]
[327456820,1716079869654,-1338.29,0.00028493,2]
[327456821,1716079869663,-500.0,0.00028493,2]
[327456822,1716079869673,-877.48,0.00028493,2]
[327456823,1716079869682,-500.0,0.00028493,2]
[327456824,1716079869691,-955.29,0.00028493,2]
[327456825,1716079869700,-3753.72,0.00028493,2]
[327456826,1716079869710,-500.0,0.00028493,2]
[327456827,1716079869720,-3260.19,0.00028493,2]
[327456828,1716079869729,-500.0,0.00028493,2]
[327456829,1716079869738,-2742.03,0.00028493,2]
[327456830,1716079869748,-1111.7,0.00028493,2]
[327456831,1716079869757,-152.405286,0.00028493,7]
[327456832,1716079869767,-1864.26,0.00028493,2]
[327456833,1716079869776,-500.0,0.00028493,2]
[327456834,1716079869785,-500.0,0.00028493,2]
[327456835,1716079869795,-500.0,0.00028493,2]
[327456836,1716079869804,-500.0,0.00028493,2]
[327456837,1716079869814,-550.17,0.00028493,2]
[327456838,1716079869823,-500.0,0.00028493,2]
[327456839,1716079869832,-577.21,0.00028493,2]
[327456840,1716079869841,-1512.87,0.00028493,2]
[327456841,1716079869854,-697.0,0.00028493,2]
[327456842,1716079869863,-500.0,0.00028493,2]
[327456843,1716079869873,-2533.85,0.00028493,2]
[327456844,1716079869882,-679.17,0.00028493,2]
[327456845,1716079869891,-965.18,0.00028493,2]
[327456846,1716079869901,-1281.95,0.00028493,2]
[327456847,1716079869910,-534.52713563,0.00028493,2]
[327456848,1716079869919,-500.0,0.00028493,2]
[327456849,1716079869931,-157.051909,0.00028548,18]
[327456850,1716079869941,-1727.0,0.000286,2]
[327456851,1716079869950,-150.0,0.00028615,7]
[327456852,1716079869959,-1000.0,0.00028667,2]
[327456853,1716079869968,-10000.0,0.00028667,2]
[327456854,1716079869977,-157.051909,0.00028748,24]
[327456855,1716079869986,-500.0,0.00028767,2]
[327456856,1716079869995,-500.0,0.00028767,2]
[327456857,1716079870004,-500.0,0.00028767,2]
[327456858,1716079870014,-500.0,0.00028767,2]
[327456859,1716079870023,-500.0,0.00028767,2]
[327456860,1716079870032,-500.0,0.00028767,2]
[327456861,1716079870041,-500.0,0.00028767,2]
[327456862,1716079870050,-500.0,0.00028767,2]
[327456863,1716079870059,-694.12,0.00028767,2]
[327456864,1716079870068,-500.0,0.00028767,2]
[327456865,1716079870077,-500.0,0.00028767,2]
[327456866,1716079870086,-522.65859983,0.00028767,2]
[327456867,1716079870095,-500.0,0.00028767,2]
[327456868,1716079870104,-500.0,0.00028767,2]
[327456869,1716079870112,-566.02,0.00028767,2]
[327456870,1716079870122,-500.0,0.00028767,2]
[327456871,1716079870131,-500.0,0.00028767,2]
[327456872,1716079870140,-500.0,0.00028767,2]
[327456873,1716079870149,-500.0,0.00028767,2]
[327456874,1716079870159,-500.0,0.00028767,2]
[327456875,1716079870168,-608.41,0.00028767,2]
[327456876,1716079870177,-500.0,0.00028767,2]
[327456877,1716079870186,-500.0,0.00028767,2]
[327456878,1716079870196,-1131.97,0.00028767,2]
[327456879,1716079870204,-500.0,0.00028767,2]
[327456880,1716079870214,-151.0,0.00028767,7]
[327456881,1716079870223,-253.552672,0.00028767,7]
[327456882,1716079870233,-579.57,0.00028767,2]
[327456883,1716079870242,-500.0,0.00028767,2]
[327456884,1716079870252,-527.37348769,0.00028767,2]
[327456885,1716079870262,-500.0,0.00028767,2]
[327456886,1716079870271,-151.0,0.00028767,7]
[327456887,1716079870280,-500.0,0.00028767,2]
[327456888,1716079870290,-500.0,0.00028767,2]
[327456889,1716079870299,-500.0,0.00028767,2]
[327456890,1716079870309,-500.09,0.00028767,2]
[327456891,1716079870318,-500.0,0.00028767,2]
[327456892,1716079870327,-151.0,0.00028767,7]
[327456893,1716079870336,-873.62,0.00028767,2]
[327456894,1716079870345,-500.0,0.00028767,2]
[327456895,1716079870355,-500.0,0.00028767,2]
[327456896,1716079870364,-500.0,0.00028767,2]
[327456897,1716079870373,-500.0,0.00028767,2]
[327456898,1716079870382,-500.0,0.00028767,2]
[327456899,1716079870391,-176.063461,0.00028767,7]
[327456900,1716079870400,-176.063461,0.00028767,7]
[327456901,1716079870409,-500.0,0.00028767,2]
[327456902,1716079870418,-500.0,0.00028767,2]
[327456903,1716079870427,-589.52,0.00028767,2]
[327456904,1716079870436,-648.09,0.00028767,2]
[327456905,1716079870445,-523.3,0.00028767,2]
[327456906,1716079870455,-586.05529596,0.00028767,2]
[327456907,1716079870464,-278.642658,0.00028767,7]
[327456908,1716079870474,-500.0,0.00028767,2]
[327456909,1716079870483,-500.0,0.00028767,2]
[327456910,1716079870492,-500.0,0.00028767,2]
[327456911,1716079870501,-278.642658,0.00028767,7]
[327456912,1716079870512,-801.03,0.00028767,2]
[327456913,1716079870521,-558.63,0.00028767,2]
[327456914,1716079870531,-799.77,0.00028767,2]
[327456915,1716079870540,-591.98,0.00028767,2]
[327456916,1716079870549,-500.0,0.00028767,2]
[327456917,1716079870559,-892.31,0.00028767,2]
[327456918,1716079870568,-500.0,0.00028767,2]
[327456919,1716079870577,-655.12,0.00028767,2]
[327456920,1716079870586,-616.57,0.00028767,2]
[327456921,1716079870595,-517.62,0.00028767,2]
[327456922,1716079870605,-500.0,0.00028767,2]
[327456923,1716079870614,-500.0,0.00028767,2]
[327456924,1716079870623,-500.0,0.00028767,2]
[327456925,1716079870632,-602.52,0.00028767,2]
[327456926,1716079870641,-500.0,0.00028767,2]
[327456927,1716079870651,-500.0,0.00028767,2]
[327456928,1716079870660,-840.77,0.00028767,2]
[327456929,1716079870669,-500.0,0.00028767,2]
[327456930,1716079870678,-608.64,0.00028767,2]
[327456931,1716079870687,-536.02,0.00028767,2]
[327456932,1716079870696,-1106.38,0.00028767,2]
[327456933,1716079870705,-500.0,0.00028767,2]
[327456934,1716079870714,-151.0,0.00028767,7]
[327456935,1716079870723,-500.0,0.00028767,2]
[327456936,1716079870732,-500.0,0.00028767,2]
[327456937,1716079870741,-500.0,0.00028767,2]
[327456938,1716079870751,-500.0,0.00028767,2]
[327456939,1716079870762,-500.0,0.00028767,2]
[327456940,1716079870771,-957.21,0.00028767,2]
[327456941,1716079870782,-1257.0,0.00028767,2]
[327456942,1716079870791,-500.0,0.00028767,2]
[327456943,1716079870800,-500.0,0.00028767,2]
[327456944,1716079870809,-500.0,0.00028767,2]
[327456945,1716079870818,-1352.16,0.00028767,2]
[327456946,1716079870826,-500.0,0.00028767,2]
[327456947,1716079870835,-684.6,0.00028767,2]
[327456948,1716079870844,-1072.66,0.00028767,2]
[327456949,1716079870857,-849.73,0.00028767,2]
[327456950,1716079870866,-500.0,0.00028767,2]
[327456951,1716079871032,-874.66,0.00028767,2]
[327456952,1716079871042,-151.0,0.00028767,7]
[327456953,1716079871053,-585.08,0.00028767,2]
[327456954,1716079871063,-1990.29,0.00028767,2]
[327456955,1716079871072,-545.44,0.00028767,2]
[327456956,1716079871081,-1243.99,0.00028767,2]
[327456957,1716079871090,-500.0,0.00028767,2]
[327456958,1716079871099,-750.45,0.00028767,2]
[327456959,1716079871108,-748.72,0.00028767,2]
[327456960,1716079871118,-1292.43,0.00028767,2]
[327456961,1716079871126,-151.0,0.00028767,7]
[327456962,1716079871136,-500.0,0.00028767,2]
[327456963,1716079871145,-846.9,0.00028767,2]
[327456964,1716079871156,-500.0,0.00028767,2]
[327456965,1716079871165,-1250.19,0.00028767,2]
[327456966,1716079871175,-1463.37,0.00028767,2]
[327456967,1716079871184,-500.0,0.00028767,2]
[327456968,1716079871193,-151.0,0.00028767,7]
[327456969,1716079871202,-530.63,0.00028767,2]
[327456970,1716079871211,-500.0,0.00028767,2]
[327456971,1716079871220,-843.77,0.00028767,2]
[327456972,1716079871230,-1072.07,0.00028767,2]
[327456973,1716079871240,-500.0,0.00028767,2]
[327456974,1716079871249,-896.67,0.00028767,2]
[327456975,1716079871258,-500.0,0.00028767,2]
[327456976,1716079871267,-500.0,0.00028767,2]
[327456977,1716079871276,-319.688279,0.00028767,7]
[327456978,1716079871286,-733.96,0.00028767,2]
[327456979,1716079871295,-1493.69,0.00028767,2]
[327456980,1716079871304,-319.688279,0.00028767,7]
[327456981,1716079871314,-996.4,0.00028767,2]
[327456982,1716079871323,-500.0,0.00028767,2]
[327456983,1716079871332,-500.0,0.00028767,2]
[327456984,1716079871341,-500.0,0.00028767,2]
[327456985,1716079871351,-500.0,0.00028767,2]
[327456986,1716079871360,-1067.83,0.00028767,2]
[327456987,1716079871370,-500.0,0.00028767,2]
[327456988,1716079871379,-717.91,0.00028767,2]
[327456989,1716079871388,-464.916368,0.00028767,7]
[327456990,1716079871398,-671.98,0.00028767,2]
[327456991,1716079871407,-464.916368,0.00028767,7]
[327456992,1716079871417,-414.26,0.00028767,2]
[327456993,1716079871427,-500.0,0.00028767,2]
[327456994,1716079871436,-637.51,0.00028767,2]
[327456995,1716079871445,-151.0,0.00028767,7]
[327456996,1716079871454,-500.0,0.00028767,2]
[327456997,1716079871463,-709.05,0.00028767,2]
[327456998,1716079871473,-1264.55,0.00028767,2]
[327456999,1716079871482,-151.0,0.00028767,7]
[327457000,1716079871491,-500.0,0.00028767,2]
[327457001,1716079871501,-753.77,0.00028767,2]
[327457002,1716079871511,-500.0,0.00028767,2]
[327457003,1716079871520,-1101.63,0.00028767,2]
[327457004,1716079871529,-500.0,0.00028767,2]
[327457005,1716079871538,-1105.23,0.00028767,2]
[327457006,1716079871548,-516.07,0.00028767,2]
[327457007,1716079871557,-500.0,0.00028767,2]
[327457008,1716079871566,-500.0,0.00028767,2]
[327457009,1716079871576,-500.0,0.00028767,2]
[327457010,1716079871585,-1016.72,0.00028767,2]
[327457011,1716079871594,-500.0,0.00028767,2]
[327457012,1716079871603,-1552.71,0.00028767,2]
[327457013,1716079871612,-1614.27,0.00028767,2]
[327457014,1716079871621,-151.0,0.00028767,7]
[327457015,1716079871630,-822.34,0.00028767,2]
[327457016,1716079871639,-151.0,0.00028767,7]
[327457017,1716079871648,-500.0,0.00028767,2]
[327457018,1716079871657,-745.19,0.00028767,2]
[327457019,1716079871667,-500.0,0.00028767,2]
[327457020,1716079871675,-861.8,0.00028767,2]
[327457021,1716079871685,-500.0,0.00028767,2]
[327457022,1716079871694,-500.0,0.00028767,2]
[327457023,1716079871704,-867.38,0.00028767,2]
[327457024,1716079871713,-790.2,0.00028767,2]
[327457025,1716079871723,-908.09,0.00028767,2]
[327457026,1716079871732,-500.0,0.00028767,2]
[327457027,1716079871741,-2847.34,0.00028767,2]
[327457028,1716079871751,-500.0,0.00028767,2]
[327457029,1716079871761,-500.0,0.00028767,2]
[327457030,1716079871770,-500.0,0.00028767,2]
[327457031,1716079871779,-231.081675,0.00028767,7]
[327457032,1716079871789,-500.0,0.00028767,2]
[327457033,1716079871801,-231.081675,0.00028767,7]
[327457034,1716079871811,-500.0,0.00028767,2]
[327457035,1716079871821,-500.0,0.00028767,2]
[327457036,1716079871832,-879.34,0.00028767,2]
[327457037,1716079871842,-500.0,0.00028767,2]